bitfinex/quotes_BTCUSD_20251224
["timestamp","ask_amount","ask_price","bid_price","bid_amount"]
[1766581811864,0.01148,87387.0,87379.0,0.01144439]
[1766581812100,0.01148,87387.0,87381.0,0.01144413]
[1766581812267,0.01148,87387.0,87381.0,0.06866351]
[1766581812499,0.01148,87387.0,87383.0,0.01144387]
[1766581813046,0.01148,87387.0,87382.0,0.06866397]
[1766581814520,0.01148,87387.0,87381.0,0.01144413]
[1766581814726,0.01148,87387.0,87381.0,0.06866479]
[1766581814929,0.01148,87387.0,87382.0,0.011444]
[1766581815951,0.01148,87387.0,87381.0,0.06866479]
[1766581816153,0.01148,87387.0,87381.0,0.06866473]
[1766581816330,0.01148,87387.0,87381.0,0.01144413]
[1766581817888,0.01148,87387.0,87380.0,0.01144426]
[1766581818003,0.01148,87387.0,87379.0,0.08014633]
[1766581818206,0.01148,87387.0,87380.0,0.01144426]
[1766581818632,0.01148,87387.0,87379.0,0.08014633]
[1766581819078,0.01148,87387.0,87379.0,0.02292439]
[1766581819569,0.02292334,87387.0,87379.0,0.02292439]
[1766581819886,0.08014025,87387.0,87379.0,0.01148]
[1766581820309,0.01144348,87386.0,87379.0,0.01148]
[1766581820514,0.01148,87387.0,87379.0,0.02292439]
[1766581820908,0.01148,87387.0,87382.0,0.011444]
[1766581821109,0.01148,87387.0,87383.0,0.01144387]
[1766581821308,0.01148,87387.0,87382.0,0.011444]
[1766581821530,0.01148,87387.0,87381.0,0.01144413]
[1766581822176,0.01148,87387.0,87380.0,0.01144426]
[1766581822480,0.01148,87387.0,87379.0,0.02292439]
[1766581822812,0.02292334,87387.0,87379.0,0.02292439]
[1766581823475,0.01148,87387.0,87380.0,0.01144426]
[1766581823679,0.02292334,87387.0,87379.0,0.02292439]
[1766581824628,0.08014015,87387.0,87379.0,0.01148]
[1766581824799,0.01144348,87386.0,87379.0,0.01148]
[1766581825022,0.08014011,87387.0,87379.0,0.01148]
[1766581825606,0.02292334,87387.0,87379.0,0.01148]
[1766581826602,0.01144348,87386.0,87379.0,0.01148]
[1766581827582,0.08014014,87387.0,87379.0,0.01148]
[1766581827796,0.01148,87387.0,87379.0,0.02292439]
[1766581829277,0.02292334,87387.0,87379.0,0.01148]
[1766581829673,0.02292334,87387.0,87379.0,0.02292439]
[1766581829879,0.00025411,87387.0,87381.0,0.01144413]
[1766581830085,0.01148,87390.0,87385.0,0.01144361]
[1766581830298,0.01148,87390.0,87386.0,0.01144348]
[1766581830911,0.01148,87390.0,87385.0,0.06866145]
[1766581831324,0.01148,87390.0,87385.0,0.01144361]
[1766581831661,0.01148,87390.0,87385.0,0.06866155]
[1766581831865,0.18847161,87398.0,87389.0,0.01144308]
[1766581832090,0.01144217,87396.0,87387.0,0.05721674]
[1766581832315,0.06869078,87397.0,87387.0,0.06866008]
[1766581832316,0.02292204,87397.0,87387.0,0.06866008]
[1766581832629,0.02292204,87397.0,87388.0,0.01144321]
[1766581832828,0.08013224,87397.0,87388.0,0.01144321]
[1766581833034,0.02292204,87397.0,87388.0,0.01144321]
[1766581833235,0.02292204,87397.0,87387.0,0.06866008]
[1766581833236,0.01144217,87396.0,87387.0,0.01144334]
[1766581833437,0.01144217,87396.0,87388.0,0.01144321]
[1766581833641,0.02292204,87397.0,87389.0,0.01144308]
[1766581834120,0.01148,87397.0,87389.0,0.01144308]
[1766581834365,0.01148,87397.0,87387.0,0.01144334]
[1766581834366,0.06865302,87396.0,87387.0,0.01144334]
[1766581834532,0.01144217,87396.0,87387.0,0.01144334]
[1766581834735,0.06869024,87397.0,87389.0,0.01144308]
[1766581834736,0.02292204,87397.0,87389.0,0.01144308]
[1766581834894,0.01148,87397.0,87390.0,0.10072741]
[1766581835538,0.01148,87397.0,87391.0,0.01144282]
[1766581835861,0.01148,87397.0,87390.0,0.10072741]
[1766581837393,0.01148,87397.0,87390.0,0.11217036]
[1766581837572,0.01148,87397.0,87390.0,0.10072741]
[1766581839619,0.01148,87397.0,87390.0,0.11217036]
[1766581839820,0.01148,87397.0,87390.0,0.10072741]
[1766581839999,0.02292204,87397.0,87390.0,0.10072741]
[1766581840403,0.01148,87397.0,87390.0,0.10072741]
[1766581840563,0.02292204,87397.0,87390.0,0.10072741]
[1766581841107,0.01148,87397.0,87390.0,0.11217036]
[1766581841861,0.01148,87397.0,87390.0,0.16938508]
[1766581842071,0.01148,87397.0,87390.0,0.10072741]
[1766581842369,0.02292204,87397.0,87390.0,0.10072741]
[1766581842565,0.0801324,87397.0,87388.0,0.02292321]
[1766581842993,0.01148,87397.0,87389.0,0.06865846]
[1766581843198,0.000549,87389.0,87388.0,0.01148]
[1766581843397,0.000549,87389.0,87386.0,0.0572172]
[1766581843622,0.000549,87389.0,87388.0,0.01148]
[1766581843777,0.0114423,87395.0,87388.0,0.01148]
[1766581843993,0.1294223,87395.0,87388.0,0.01148]
[1766581844724,0.1294223,87395.0,87388.0,0.010931]
[1766581848620,0.11798,87395.0,87388.0,0.010931]
[1766581848778,0.05721282,87393.0,87388.0,0.010931]
[1766581848979,0.06865538,87393.0,87388.0,0.010931]
[1766581849178,0.06865511,87394.0,87388.0,0.010931]
[1766581849388,0.18663511,87394.0,87388.0,0.010931]
[1766581849597,0.11798,87394.0,87388.0,0.010931]
[1766581850682,0.11798,87394.0,87391.0,0.01144282]
[1766581851641,0.11798,87394.0,87390.0,0.06865733]
[1766581852049,0.11798,87394.0,87391.0,0.01144282]
[1766581852274,0.11798,87394.0,87391.0,0.06865693]
[1766581852698,0.11798,87394.0,87391.0,0.06865683]
[1766581852908,0.11798,87394.0,87391.0,0.01144282]
[1766581853842,0.11798,87394.0,87391.0,0.06865672]
[1766581854259,0.11798,87394.0,87392.0,0.05721345]
[1766581854455,0.11257838,87394.0,87392.0,0.05721345]
[1766581854673,0.01152954,87398.0,87395.0,0.0114423]
[1766581854894,0.01152954,87398.0,87394.0,0.01144243]
[1766581855140,0.01152954,87398.0,87395.0,0.06865378]
[1766581855351,0.01152954,87398.0,87395.0,0.0114423]
[1766581855603,0.01152954,87398.0,87394.0,0.0686541]
[1766581856060,0.01152954,87398.0,87395.0,0.06865338]
[1766581856384,0.01152954,87398.0,87395.0,0.06865377]
[1766581857428,0.01152954,87398.0,87395.0,0.0114423]
[1766581858007,0.01152954,87398.0,87394.0,0.06865458]
[1766581858629,0.01152954,87398.0,87395.0,0.0114423]
[1766581858834,0.01152954,87398.0,87394.0,0.06865458]
[1766581859501,0.01152954,87398.0,87393.0,0.01144256]
[1766581859703,0.01152954,87398.0,87392.0,0.0686561]
[1766581859906,0.01152954,87398.0,87391.0,0.01144282]
[1766581860114,0.01152954,87398.0,87393.0,0.01144256]
[1766581860435,0.01152954,87398.0,87391.0,0.06865658]
[1766581860637,0.01152954,87398.0,87392.0,0.01144269]
[1766581861143,0.01152954,87398.0,87392.0,0.06865611]
[1766581861771,0.01152954,87398.0,87394.0,0.01144243]
[1766581861944,0.01152954,87398.0,87395.0,0.0114423]
[1766581862108,0.01152954,87398.0,87395.0,0.06865375]
[1766581862747,0.01152954,87398.0,87396.0,0.05721077]
[1766581862956,0.01152954,87398.0,87397.0,0.0572102]
[1766581863327,0.01152954,87398.0,87396.0,0.05721077]
[1766581863510,0.01152954,87398.0,87395.0,0.06865378]
[1766581863710,0.01152954,87398.0,87395.0,0.0114423]
[1766581864293,0.01152954,87398.0,87394.0,0.06865439]
[1766581864708,0.01152954,87398.0,87394.0,0.01144243]
[1766581864881,0.01152954,87398.0,87394.0,0.06865442]
[1766581865301,0.01152954,87398.0,87394.0,0.01144243]
[1766581865729,0.01152954,87398.0,87389.0,0.01144]
[1766581866100,0.01152954,87398.0,87393.0,0.01144256]
[1766581866219,0.01152954,87398.0,87394.0,0.01144243]
[1766581866426,0.01152954,87398.0,87394.0,0.06865408]
[1766581867191,0.01152954,87398.0,87389.0,0.01144]
[1766581867483,0.001099,87394.0,87390.0,0.05721358]
[1766581867688,0.01152954,87398.0,87393.0,0.06865414]
[1766581867902,0.01152954,87398.0,87395.0,0.0114423]
[1766581868303,0.01152954,87398.0,87394.0,0.06865431]
[1766581868526,0.01098054,87398.0,87395.0,0.0114423]
[1766581868998,0.01098054,87398.0,87394.0,0.06865431]
[1766581869238,0.5,87400.0,87395.0,0.0114423]
[1766581869435,0.50007327,87400.0,87393.0,0.06865414]
[1766581871153,0.50007327,87400.0,87395.0,0.0114423]
[1766581871357,0.50007327,87400.0,87394.0,0.01144243]
[1766581871562,0.50007327,87400.0,87391.0,0.01144282]
[1766581872528,0.55728163,87400.0,87391.0,0.01144282]
[1766581872726,0.01144177,87399.0,87391.0,0.01144282]
[1766581873530,0.56872327,87400.0,87391.0,0.01144282]
[1766581873728,0.01144177,87399.0,87391.0,0.01144282]
[1766581874185,0.01144177,87399.0,87389.0,0.08009822]
[1766581874186,0.0114419,87398.0,87389.0,0.08009822]
[1766581874361,0.06865304,87396.0,87387.0,0.01144334]
[1766581874561,0.01144204,87397.0,87389.0,0.01144]
[1766581874934,0.06865229,87397.0,87389.0,0.01144]
[1766581875331,0.12661204,87397.0,87389.0,0.02288308]
[1766581875532,0.11517,87397.0,87390.0,0.01144295]
[1766581875735,0.12661204,87397.0,87389.0,0.02288308]
[1766581875986,0.11517,87397.0,87389.0,0.02288308]
[1766581876361,0.11517,87397.0,87390.0,0.01144295]
[1766581876562,0.11517,87397.0,87389.0,0.08009849]
[1766581877330,0.12661204,87397.0,87389.0,0.08009849]
[1766581877658,0.11517,87397.0,87389.0,0.08009849]
[1766581878097,0.12661204,87397.0,87389.0,0.01144]
[1766581878305,0.01144204,87397.0,87389.0,0.01144]
[1766581878731,0.01144204,87397.0,87389.0,0.02288308]
[1766581880171,0.06865151,87398.0,87389.0,0.02288308]
[1766581881308,0.06865225,87397.0,87389.0,0.01144]
[1766581881587,0.51151491,87400.0,87319.0,0.37638093]
[1766581881588,0.000549,87389.0,87384.0,0.01144]
[1766581881816,0.06865578,87393.0,87384.0,0.02288374]
[1766581882014,0.01144243,87394.0,87385.0,0.01144361]
[1766581882190,0.1266123,87395.0,87385.0,0.06866137]
[1766581882397,0.18382383,87395.0,87385.0,0.06866137]
[1766581882594,0.01144243,87394.0,87385.0,0.06866137]
[1766581882795,0.18382383,87395.0,87386.0,0.01144348]
[1766581884976,0.1266123,87395.0,87387.0,0.01144334]
[1766581885204,0.18382399,87395.0,87386.0,0.01144348]
[1766581885542,0.11517,87395.0,87389.0,0.01144308]
[1766581885740,0.11517,87395.0,87390.0,0.01144295]
[1766581885941,0.11517,87395.0,87389.0,0.01144308]
[1766581886167,0.114621,87395.0,87391.0,0.06865662]
[1766581886337,0.114621,87395.0,87390.0,0.06865738]
[1766581887315,0.114621,87395.0,87391.0,0.01144282]
[1766581887500,0.01144177,87399.0,87391.0,0.01144282]
[1766581887709,0.56872319,87400.0,87391.0,0.01144282]
[1766581888276,0.01144177,87399.0,87390.0,0.01144295]
[1766581888479,0.18604121,87399.0,87390.0,0.01144295]
[1766581888689,0.18604121,87399.0,87391.0,0.01144282]
[1766581889164,0.18604121,87399.0,87390.0,0.06865762]
[1766581890184,0.12883177,87399.0,87390.0,0.06865762]
[1766581890383,0.11739,87399.0,87391.0,0.01144282]
[1766581890610,0.17459949,87399.0,87390.0,0.05721465]
[1766581891356,0.0114419,87398.0,87390.0,0.01144295]
[1766581891991,0.18604126,87399.0,87390.0,0.01144295]
[1766581892209,0.18604126,87399.0,87391.0,0.01144282]
[1766581892462,0.11739,87399.0,87391.0,0.06865669]
[1766581892684,0.11739,87399.0,87392.0,0.01144269]
[1766581893309,0.11739,87399.0,87391.0,0.06865669]
[1766581893972,0.12883177,87399.0,87391.0,0.01144282]
[1766581894934,0.11739,87399.0,87391.0,0.06865686]
[1766581895107,0.11739,87399.0,87392.0,0.01144269]
[1766581895349,0.11739,87399.0,87391.0,0.06865686]
[1766581895559,0.11739,87399.0,87392.0,0.01144269]
[1766581896204,0.11739,87399.0,87391.0,0.06865686]
[1766581897044,0.12883177,87399.0,87388.0,0.01144321]
[1766581897225,0.12883177,87399.0,87389.0,0.06865851]
[1766581897427,0.18604114,87399.0,87390.0,0.01144295]
[1766581898852,0.18604114,87399.0,87390.0,0.06865768]
[1766581899039,0.18604114,87399.0,87390.0,0.01144295]
[1766581899901,0.0114419,87398.0,87390.0,0.01144295]
[1766581900110,0.18604114,87399.0,87390.0,0.01144295]
[1766581900538,0.0114419,87398.0,87390.0,0.01144295]
[1766581900761,0.0114419,87398.0,87389.0,0.06865851]
[1766581901193,0.11739,87399.0,87391.0,0.01144282]
[1766581901415,0.11739,87399.0,87390.0,0.06865727]
[1766581902201,0.11739,87399.0,87391.0,0.05721406]
[1766581902389,0.12883177,87399.0,87391.0,0.01144282]
[1766581903004,0.12883177,87399.0,87390.0,0.06865727]
[1766581903249,0.01144204,87397.0,87388.0,0.01144321]
[1766581903421,0.0114419,87398.0,87389.0,0.06865814]
[1766581903624,0.0114419,87398.0,87390.0,0.01144295]
[1766581903804,0.18604087,87399.0,87390.0,0.01144295]
[1766581904265,0.0114423,87395.0,87387.0,0.02288334]
[1766581904624,0.123069,87387.0,87375.0,0.01144492]
[1766581904793,0.123069,87387.0,87376.0,0.11216741]
[1766581904794,0.011444,87382.0,87376.0,0.11216741]
[1766581904945,0.01144465,87377.0,87365.0,0.01144623]
[1766581905161,0.12252,87378.0,87367.0,0.01144596]
[1766581905362,0.12252,87378.0,87370.0,0.01144557]
[1766581905561,0.12252,87378.0,87371.0,0.06867265]
[1766581905759,0.12252,87378.0,87371.0,0.01144544]
[1766581905967,0.01144,87381.0,87372.0,0.05722599]
[1766581906148,0.01144,87385.0,87374.0,0.01144505]
[1766581906355,0.01144,87385.0,87375.0,0.01144492]
[1766581906599,0.14540361,87385.0,87373.0,0.08010984]
[1766581906799,0.13396,87385.0,87375.0,0.01144492]
[1766581907204,0.13396,87385.0,87376.0,0.05722395]
[1766581907377,0.13396,87385.0,87382.0,0.011444]
[1766581907578,0.01144,87388.0,87384.0,0.01144374]
[1766581907813,0.01144,87390.0,87388.0,0.06865876]
[1766581908057,0.01144,87390.0,87388.0,0.06920776]
[1766581908261,0.01144,87390.0,87388.0,0.000549]
[1766581908459,0.01144,87390.0,87386.0,0.01144348]
[1766581909575,0.01144,87390.0,87386.0,0.06866087]
[1766581910001,0.01144,87390.0,87387.0,0.01144334]
[1766581910607,0.01144,87390.0,87387.0,0.06865969]
[1766581910978,0.01144,87390.0,87386.0,0.01144348]
[1766581911106,0.13396,87390.0,87386.0,0.01144348]
[1766581911313,0.13396,87390.0,87385.0,0.06866153]
[1766581911533,0.13396,87390.0,87387.0,0.01144334]
[1766581911743,0.13396,87390.0,87388.0,0.05721609]
[1766581912562,0.13396,87390.0,87386.0,0.06866083]
[1766581912930,0.13396,87390.0,87387.0,0.01144334]
[1766581913802,0.13396,87390.0,87386.0,0.01144348]
[1766581914019,0.13396,87390.0,87384.0,0.06866195]
[1766581914252,0.13396,87390.0,87385.0,0.06866164]
[1766581914471,0.13396,87390.0,87381.0,0.0686635]
[1766581914703,0.12252,87388.0,87380.0,0.01144426]
[1766581915161,0.12252,87388.0,87378.0,0.06866704]
[1766581915378,0.12252,87388.0,87379.0,0.01144439]
[1766581915591,0.12252,87388.0,87380.0,0.01144426]
[1766581915810,0.12252,87388.0,87381.0,0.0686648]
[1766581916043,0.12252,87388.0,87383.0,0.01144387]
[1766581917105,0.12252,87388.0,87384.0,0.01144374]
[1766581917329,0.12252,87388.0,87383.0,0.0686631]
[1766581917759,0.12252,87388.0,87384.0,0.01144374]
[1766581918818,0.12252,87388.0,87382.0,0.06866398]
[1766581919249,0.12252,87388.0,87384.0,0.01144374]
[1766581919452,0.12252,87388.0,87383.0,0.01144387]
[1766581919948,0.12252,87388.0,87385.0,0.01144361]
[1766581920100,0.12252,87388.0,87384.0,0.01144374]
[1766581920304,0.12252,87388.0,87382.0,0.011444]
[1766581920555,0.12252,87388.0,87381.0,0.06866466]
[1766581920709,0.12252,87388.0,87382.0,0.011444]
[1766581920891,0.12252,87388.0,87382.0,0.0686636]
[1766581921086,0.12252,87388.0,87381.0,0.06866461]
[1766581921339,0.02288295,87390.0,87370.0,0.01144557]
[1766581921340,0.11807,87379.0,87370.0,0.01144557]
[1766581921581,0.04576,87394.0,87367.0,0.06867528]
[1766581921582,0.11807,87376.0,87367.0,0.06867528]
[1766581921765,0.11807,87376.0,87368.0,0.01144583]
[1766581921923,0.11807,87376.0,87367.0,0.01144596]
[1766581922327,0.12951479,87376.0,87367.0,0.06867579]
[1766581922635,0.01144492,87375.0,87366.0,0.01144]
[1766581922828,0.01144518,87373.0,87366.0,0.01144]
[1766581923226,0.11807,87369.0,87363.0,0.00069567]
[1766581924131,0.11807,87369.0,87363.0,0.00078521]
[1766581924551,0.1295157,87369.0,87363.0,0.00078521]
[1766581924803,0.11807,87369.0,87363.0,0.00078521]
[1766581925428,0.1295157,87369.0,87363.0,0.00078521]
[1766581925850,0.11807,87366.0,87363.0,0.00078521]
[1766581926663,0.11807,87366.0,87360.0,0.0004]
[1766581926827,0.11807,87366.0,87360.0,0.00048554]
[1766581927225,0.11807,87366.0,87361.0,0.01144675]
[1766581927628,0.11807,87366.0,87360.0,0.06916668]
[1766581927834,0.11807,87366.0,87360.0,0.00048554]
[1766581928016,0.12951649,87363.0,87360.0,0.00048554]
[1766581928252,0.11807,87362.0,87357.0,0.0004]
[1766581928447,0.11815953,87362.0,87357.0,0.0004]
[1766581929091,0.11815953,87362.0,87357.0,0.01184727]
[1766581929615,0.11815953,87362.0,87357.0,0.0004]
[1766581929968,0.11761053,87362.0,87357.0,0.0004]
[1766581933082,0.12905715,87362.0,87357.0,0.0004]
[1766581933397,0.11807,87361.0,87355.0,0.00025102]
[1766581933918,0.11807,87361.0,87355.0,0.01169856]
[1766581934279,0.11807,87361.0,87355.0,0.00025102]
[1766581934483,0.11807,87361.0,87355.0,0.01169856]
[1766581935066,8.953e-05,87362.0,87361.0,0.00055]
[1766581935268,0.01148,87365.0,87362.0,0.01144662]
[1766581935471,0.01154516,87365.0,87362.0,0.06867973]
[1766581935673,0.01148,87369.0,87363.0,0.06867844]
[1766581935890,0.01148,87369.0,87364.0,0.01144636]
[1766581936378,0.01148,87369.0,87362.0,0.06867922]
[1766581936616,0.01148,87369.0,87363.0,0.05723238]
[1766581936844,0.01148,87369.0,87364.0,0.01144636]
[1766581937176,0.01148,87369.0,87363.0,0.01144649]
[1766581937856,0.01148,87369.0,87364.0,0.01144636]
[1766581938414,0.00793395,87369.0,87365.0,0.01144623]
[1766581938616,0.00793395,87369.0,87366.0,0.06867645]
[1766581938843,0.01144531,87372.0,87363.0,0.01144649]
[1766581939020,0.01144518,87373.0,87364.0,0.02292636]
[1766581939217,0.06867113,87373.0,87364.0,0.02292636]
[1766581939425,0.01144531,87372.0,87364.0,0.01148]
[1766581939826,0.01144531,87372.0,87364.0,0.02292636]
[1766581940068,0.05722688,87372.0,87364.0,0.01148]
[1766581940268,0.06867113,87373.0,87364.0,0.01148]
[1766581940522,0.01144544,87371.0,87364.0,0.01148]
[1766581941126,0.01144557,87370.0,87364.0,0.01148]
[1766581941350,0.0114457,87369.0,87364.0,0.01148]
[1766581941562,0.01144583,87368.0,87364.0,0.01148]
[1766581941994,0.01144557,87370.0,87364.0,0.01148]
[1766581943268,0.0114457,87369.0,87364.0,0.01148]
[1766581943464,0.06867355,87370.0,87364.0,0.01148]
[1766581944388,0.0114457,87369.0,87364.0,0.01148]
[1766581945424,0.01144583,87368.0,87364.0,0.01148]
[1766581946165,0.01144596,87367.0,87358.0,0.01144714]
[1766581946508,0.01144636,87364.0,87361.0,0.01148]
[1766581946662,0.01144636,87364.0,87355.0,0.00025102]
[1766581946663,0.01144688,87360.0,87358.0,0.01148]
[1766581947007,0.0572369,87357.0,87355.0,0.00025102]
[1766581947211,0.06868301,87358.0,87355.0,0.01179618]
[1766581947650,0.00023282,87355.0,87354.0,0.0004]
[1766581947860,0.00023282,87355.0,87352.0,0.01148]
[1766581948158,0.01144806,87351.0,87350.0,0.01148]
[1766581948560,0.06868838,87351.0,87350.0,0.01148]
[1766581948764,0.06892224,87350.0,87349.0,0.01148]
[1766581949168,0.05724165,87349.0,87347.0,0.00025102]
[1766581949388,0.05779165,87349.0,87347.0,0.00025102]
[1766581949604,0.05779165,87349.0,87348.0,0.01148]
[1766581949807,0.05724165,87349.0,87348.0,0.01148]
[1766581950251,0.05724165,87349.0,87347.0,0.00025102]
[1766581950252,0.05724229,87348.0,87347.0,0.00025102]
[1766581950456,0.0689426,87347.0,87338.0,0.01144976]
[1766581950630,0.01169959,87347.0,87339.0,0.01148]
[1766581950835,0.05724457,87345.0,87335.0,0.05725075]
[1766581951042,0.2404161,87349.0,87330.0,0.01145081]
[1766581951043,0.01144937,87341.0,87330.0,0.01145081]
[1766581951252,0.06869447,87344.0,87333.0,0.01145042]
[1766581951445,0.01144924,87342.0,87330.0,0.01145081]
[1766581951700,0.06869644,87341.0,87334.0,0.00358737]
[1766581951908,0.01144963,87339.0,87335.0,0.01148]
[1766581952225,0.01144963,87339.0,87331.0,0.01145068]
[1766581952424,0.01145003,87336.0,87322.0,0.01145186]
[1766581952690,0.000233,87331.0,87323.0,0.01148]
[1766581952864,0.000233,87331.0,87324.0,0.0114516]
[1766581953031,0.06870237,87334.0,87325.0,0.01145147]
[1766581953235,0.22899449,87339.0,87323.0,0.01148]
[1766581953236,0.12087,87343.0,87334.0,0.01176629]
[1766581953450,0.06869366,87345.0,87335.0,0.01145016]
[1766581953657,0.0114495,87340.0,87331.0,0.06870406]
[1766581953874,0.0114495,87340.0,87331.0,0.01145068]
[1766581954074,0.01144963,87339.0,87330.0,0.01145081]
[1766581954283,0.0114495,87340.0,87330.0,0.01145081]
[1766581954284,0.0114495,87340.0,87330.0,0.06870452]
[1766581954491,0.000233,87330.0,87306.0,0.05766917]
[1766581954704,0.12087,87334.0,87306.0,0.05766917]
[1766581954705,0.12087,87331.0,87322.0,0.06871112]
[1766581954915,0.12087,87331.0,87324.0,0.0114516]
[1766581955171,0.12087,87331.0,87322.0,0.06871112]
[1766581955375,0.01145081,87330.0,87321.0,0.01145199]
[1766581955575,0.13232068,87331.0,87321.0,0.06871192]
[1766581955955,0.13232068,87331.0,87322.0,0.0687106]
[1766581955956,0.12087,87331.0,87322.0,0.0687106]
[1766581956158,0.12087,87331.0,87324.0,0.0114516]
[1766581956501,0.13232068,87331.0,87320.0,0.08019259]
[1766581956705,0.01145081,87330.0,87320.0,0.08019259]
[1766581956914,0.13232068,87331.0,87323.0,0.01145173]
[1766581957138,0.13232068,87331.0,87322.0,0.06871118]
[1766581957342,0.12337,87329.0,87317.0,0.01145252]
[1766581957546,0.12337,87329.0,87318.0,0.02293239]
[1766581957742,0.13482094,87329.0,87319.0,0.01145226]
[1766581957920,0.13482094,87329.0,87317.0,0.06871449]
[1766581957921,0.12337,87327.0,87317.0,0.06871449]
[1766581958114,0.12337,87327.0,87318.0,0.01148]
[1766581958344,0.12337,87315.0,87306.0,0.0004]
[1766581958546,0.01145291,87314.0,87306.0,0.0004]
[1766581959018,0.19208675,87315.0,87314.0,0.000316]
[1766581959264,0.1920867,87315.0,87314.0,0.000316]
[1766581959476,0.01145317,87312.0,87306.0,0.0004]
[1766581959691,0.01109777,87312.0,87306.0,0.00044074]
[1766581959913,0.01145331,87311.0,87306.0,0.00044074]
[1766581960624,0.01145357,87309.0,87306.0,0.00044074]
[1766581960830,0.06872156,87309.0,87306.0,0.00020774]
[1766581961046,0.02293265,87316.0,87306.0,0.00020774]
[1766581961260,0.01148,87316.0,87307.0,0.0687228]
[1766581961483,0.01145134,87326.0,87313.0,0.01145304]
[1766581961695,0.02293173,87323.0,87315.0,0.00100405]
[1766581961895,0.00055,87315.0,87308.0,0.0114537]
[1766581962099,0.00055,87315.0,87307.0,0.01148]
[1766581962100,0.01200278,87315.0,87307.0,0.01148]
[1766581962301,0.01145291,87314.0,87307.0,0.01148]
[1766581962518,0.01145291,87314.0,87309.0,0.03438141]
[1766581962752,0.01145304,87313.0,87309.0,0.03438141]
[1766581962964,0.06871911,87312.0,87309.0,0.03438141]
[1766581963177,0.06871831,87313.0,87309.0,0.03438141]
[1766581963397,0.05153947,87312.0,87309.0,0.03438141]
[1766581963608,0.13482317,87312.0,87309.0,1.41e-06]
[1766581963828,0.12337,87312.0,87306.0,0.00020774]
[1766581964275,0.01145344,87310.0,87306.0,0.00020774]
[1766581964490,0.12337,87311.0,87306.0,0.00020774]
[1766581964940,0.13482331,87311.0,87306.0,0.00020774]
[1766581965199,0.01145357,87309.0,87306.0,0.00020774]
[1766581965439,0.01145344,87310.0,87306.0,0.00020774]
[1766581965660,0.01145357,87309.0,87306.0,0.00020774]
[1766581965861,0.12337,87301.0,87299.0,4.73e-06]
[1766581966285,0.122821,87301.0,87299.0,4.73e-06]
[1766581966692,0.18009415,87301.0,87299.0,4.73e-06]
[1766581967336,0.18009413,87301.0,87299.0,4.73e-06]
[1766581967767,0.18009413,87301.0,87300.0,0.00147488]
[1766581968201,0.01148,87302.0,87300.0,0.00147488]
[1766581968442,0.00101825,87302.0,87299.0,4.73e-06]
[1766581968658,0.01148,87304.0,87299.0,4.73e-06]
[1766581968874,0.06872228,87308.0,87299.0,4.73e-06]
[1766581969112,0.01148,87310.0,87302.0,0.01145449]
[1766581969349,0.01148,87314.0,87304.0,0.01145422]
[1766581969746,0.01148,87314.0,87305.0,0.01145409]
[1766581969950,0.01148,87314.0,87304.0,0.10072741]
[1766581970162,0.01145291,87314.0,87305.0,0.01145409]
[1766581970417,0.01145304,87313.0,87305.0,0.01145409]
[1766581970624,0.01145331,87311.0,87304.0,0.11220741]
[1766581970798,0.000549,87305.0,87299.0,0.01145961]
[1766581971114,0.01145344,87310.0,87303.0,0.01148]
[1766581971317,0.12337,87308.0,87299.0,4.73e-06]
[1766581971478,0.00055,87303.0,87299.0,4.73e-06]
[1766581971676,0.01145396,87306.0,87299.0,4.73e-06]
[1766581971917,0.1920935,87308.0,87299.0,4.73e-06]
[1766581972116,0.01145409,87305.0,87299.0,4.73e-06]
[1766581973084,0.01145383,87307.0,87299.0,4.73e-06]
[1766581973303,0.01145396,87306.0,87299.0,4.73e-06]
[1766581973469,0.06872226,87308.0,87299.0,0.01145961]
[1766581973667,0.13482409,87305.0,87301.0,0.00089449]
[1766581973868,0.13482409,87305.0,87299.0,4.73e-06]
[1766581973869,0.05727181,87303.0,87299.0,4.73e-06]
[1766581974167,0.01145422,87304.0,87299.0,4.73e-06]
[1766581974395,0.01145436,87303.0,87299.0,4.73e-06]
[1766581974594,0.01145449,87302.0,87299.0,4.73e-06]
[1766581974963,0.05727376,87300.0,87299.0,4.73e-06]
[1766581976198,0.18064376,87300.0,87299.0,4.73e-06]
[1766581977271,0.05727376,87300.0,87299.0,4.73e-06]
[1766581977808,0.18064376,87300.0,87299.0,4.73e-06]
[1766581979434,0.18064376,87300.0,87299.0,1e-08]
[1766581980174,0.12337,87300.0,87299.0,1e-08]
[1766581980379,0.01148,87305.0,87300.0,0.000549]
[1766581980788,0.02293409,87305.0,87300.0,0.000549]
[1766581980990,0.08020483,87305.0,87294.0,0.05727763]
[1766581981307,0.01145436,87303.0,87295.0,0.0114554]
[1766581982101,0.06872551,87304.0,87295.0,0.0114554]
[1766581982447,0.01145422,87304.0,87295.0,0.06873244]
[1766581983648,0.01145422,87304.0,87296.0,0.01145527]
[1766581983856,0.02293409,87305.0,87296.0,0.01145527]
[1766581984777,0.02293409,87305.0,87297.0,0.01145514]
[1766581985261,0.02293409,87305.0,87296.0,0.06873166]
[1766581985449,0.01148,87305.0,87296.0,0.06873166]
[1766581985688,0.02293409,87305.0,87297.0,0.01145514]
[1766581986066,0.02293409,87305.0,87296.0,0.06873166]
[1766581986273,0.01145422,87304.0,87296.0,0.01145527]
[1766581987244,0.01145422,87304.0,87295.0,0.06873236]
[1766581987656,0.01145422,87304.0,87296.0,0.01145527]
[1766581987862,0.01148,87305.0,87304.0,0.000549]
[1766581988067,0.01148,87305.0,87297.0,0.01145514]
[1766581988236,0.01148,87305.0,87298.0,0.01145501]
[1766581988437,0.01148,87305.0,87293.0,0.24067769]
[1766581988635,0.02293409,87305.0,87296.0,0.01145527]
[1766581989062,0.01145422,87304.0,87295.0,0.06873238]
[1766581989422,0.08020516,87305.0,87296.0,0.01145527]
[1766581989625,0.010931,87305.0,87296.0,0.01145527]
[1766581989825,0.010931,87305.0,87296.0,0.06873104]
[1766581990105,0.01145436,87303.0,87294.0,0.01156218]
[1766581990279,0.01145436,87303.0,87295.0,0.0114554]
[1766581990708,0.010931,87305.0,87295.0,0.0114554]
[1766581990862,0.010931,87305.0,87297.0,0.01145514]
[1766581991285,0.010931,87305.0,87298.0,0.01145501]
[1766581991506,0.0766979,87317.0,87302.0,0.01145449]
[1766581991507,0.01145317,87312.0,87302.0,0.01145449]
[1766581991688,0.06871956,87312.0,87301.0,0.06875246]
[1766581991868,0.09341419,87312.0,87301.0,0.06875246]
[1766581992066,0.06872031,87311.0,87301.0,0.08020708]
[1766581992274,0.01145331,87311.0,87302.0,0.06872673]
[1766581992472,0.06871956,87312.0,87302.0,0.06872673]
[1766581992669,0.01145331,87311.0,87303.0,0.01145436]
[1766581992902,0.01145331,87311.0,87302.0,0.06872673]